fUSD/lending_fUSD_20260427
["ID","MTS","AMOUNT","RATE_DAILY","PERIOD"]
[421263515,1777290402205,383.13,0.00032876,120]
[421263516,1777290402883,201.65,0.00032876,120]
[421263517,1777290405426,302.2,0.00032876,120]
[421263518,1777290408701,380.7,0.00032876,120]
[421263519,1777290409541,370.64,0.00032876,120]
[421263520,1777290420513,2952.61,0.00032876,120]
[421263521,1777290421275,500.0,0.00032876,120]
[421263522,1777290422842,263.24,0.00032876,120]
[421263523,1777290425514,500.0,0.00032876,120]
[421263524,1777290429662,991.0,0.00032876,120]
[421263525,1777290430775,527.60853047,0.00032876,120]
[421263526,1777290436074,500.0,0.00032876,120]
[421263527,1777290441804,534.39,0.00032876,120]
[421263528,1777290445372,500.0,0.00032876,120]
[421263529,1777290445895,500.0,0.00032876,120]
[421263530,1777290447104,500.0,0.00032876,120]
[421263531,1777290448915,500.0,0.00032876,120]
[421263532,1777290451718,263.69025878,0.00032876,120]
[421263533,1777290456012,500.0,0.00032876,120]
[421263534,1777290464331,500.0,0.00032876,120]
[421263535,1777290469057,500.0,0.00032876,120]
[421263536,1777290469111,1054.48,0.00032876,120]
[421263537,1777290470956,549.2,0.00032876,120]
[421263538,1777290471889,500.0,0.00032876,120]
[421263539,1777290475338,500.0,0.00032876,120]
[421263540,1777290476244,500.0,0.00032876,120]
[421263541,1777290478969,3667.23,0.00032876,120]
[421263542,1777290484707,500.0,0.00032876,120]
[421263543,1777290492765,620.92,0.00032876,120]
[421263544,1777290502743,500.0,0.00032876,120]
[421263545,1777290508919,539.06,0.00032876,120]
[421263546,1777290516088,500.0,0.00030419,120]
[421263547,1777290516759,264.62,0.00032876,120]
[421263548,1777290519055,500.0,0.00032876,120]
[421263549,1777290521341,500.0,0.00032876,120]
[421263550,1777290529294,211.95,0.00032876,120]
[421263551,1777290530022,1000.0,0.00032876,120]
[421263552,1777290533565,223.21,0.00032876,120]
[421263553,1777290536455,500.0,0.00032876,120]
[421263554,1777290537857,500.0,0.00032876,120]
[421263555,1777290542192,500.0,0.00032876,120]
[421263556,1777290555397,696.56,0.00032876,120]
[421263557,1777290556111,500.0,0.00032876,120]
[421263558,1777290563551,500.0,0.00032876,120]
[421263559,1777290564028,500.0,0.00032876,120]
[421263560,1777290566006,390.79,0.00032876,120]
[421263561,1777290569655,1423.55,0.00032876,120]
[421263562,1777290571143,500.0,0.00032876,120]
[421263563,1777290571933,500.0,0.00030419,120]
[421263564,1777290573150,-150.0,7.89e-05,2]
[421263565,1777290573173,-150.0,7.89e-05,2]
[421263566,1777290573195,-150.0,7.89e-05,2]
[421263567,1777290573217,-150.0,7.89e-05,2]
[421263568,1777290573241,-150.0,7.89e-05,2]
[421263569,1777290573266,-150.0,7.932e-05,2]
[421263570,1777290573290,-150.0,7.974e-05,2]
[421263571,1777290573313,-150.0,8.016e-05,2]
[421263572,1777290573335,-150.0,8.057e-05,2]
[421263573,1777290573355,-150.0,8.066e-05,2]
[421263574,1777290573379,-150.0,8.099e-05,2]
[421263575,1777290573402,-150.0,8.141e-05,2]
[421263576,1777290573425,-150.0,8.183e-05,2]
[421263577,1777290573448,-150.0,8.224e-05,2]
[421263578,1777290573470,-150.0,8.241e-05,2]
[421263579,1777290573492,-150.0,8.266e-05,2]
[421263580,1777290573515,-150.0,8.308e-05,2]
[421263581,1777290573538,-150.0,8.35e-05,2]
[421263582,1777290573560,-150.0,8.391e-05,2]
[421263583,1777290573581,-92.1007266,8.416e-05,2]
[421263584,1777290574230,500.0,0.00032876,120]
[421263586,1777290574564,500.0,0.00032876,120]
[421263587,1777290576580,500.0,0.00032876,120]
[421263588,1777290583405,500.0,0.00032876,120]
[421263589,1777290584930,500.0,0.00032876,120]
[421263590,1777290590407,500.0,0.00032876,120]
[421263591,1777290592343,1559.07,0.00032876,120]
[421263592,1777290599348,500.0,0.00032876,120]
[421263593,1777290601745,500.0,0.00032876,120]
[421263594,1777290606184,606.89,0.00032876,120]
[421263595,1777290613988,298.4612738,0.00032876,120]
[421263596,1777290622304,1252.63,0.00032876,120]
[421263597,1777290628405,500.0,0.00032876,120]
[421263598,1777290628452,500.0,0.00032876,120]
[421263599,1777290631401,500.0,0.00032876,120]
[421263606,1777290632107,-57.8992734,8.416e-05,2]
[421263607,1777290632117,-150.0,8.433e-05,2]
[421263608,1777290632127,-150.0,8.475e-05,2]
[421263609,1777290632136,-93.38482729,8.517e-05,2]
[421263610,1777290632147,-56.61517271,8.517e-05,2]
[421263611,1777290632157,-150.0,8.558e-05,2]
[421263612,1777290632166,-93.09164142,8.592e-05,2]
[421263613,1777290632185,-56.90835858,8.592e-05,2]
[421263614,1777290632194,-150.0,8.6e-05,2]
[421263615,1777290632206,-336.571,8.618e-05,2]
[421263616,1777290632216,-150.0,8.642e-05,2]
[421263617,1777290632226,-300.0,8.678e-05,2]
[421263618,1777290632235,-465.0,8.679e-05,2]
[421263619,1777290632245,-300.0,8.679e-05,2]
[421263620,1777290632254,-250.0,8.679e-05,2]
[421263621,1777290632263,-300.0,8.679e-05,2]
[421263622,1777290632272,-500.0,8.679e-05,2]
[421263623,1777290632281,-500.0,8.679e-05,2]
[421263624,1777290632291,-250.0,8.679e-05,2]
[421263625,1777290632300,-150.0,8.684e-05,2]
[421263626,1777290632309,-2500.0,8.694e-05,2]
[421263627,1777290632318,-46484.35063463,8.694e-05,2]
[421263628,1777290632330,-52053.83418994,8.694e-05,2]
[421263629,1777290632341,-208925.32185314,8.694e-05,2]
[421263630,1777290632352,-113034.81854514,8.694e-05,2]
[421263631,1777290632363,-1652.648,8.694e-05,2]
[421263632,1777290632378,-675.352,8.694e-05,2]
[421263633,1777290632396,-448.71589931,8.694e-05,2]
[421263637,1777290634310,500.0,0.00032876,120]
[421263638,1777290637554,500.0,0.00032876,120]
[421263639,1777290638480,-304.0,8.693e-05,2]
[421263640,1777290638586,-229.65552585,8.693e-05,2]
[421263641,1777290638596,-249.93341366,8.693e-05,2]
[421263642,1777290638606,-375.43868183,8.694e-05,2]
[421263643,1777290638618,-659.9772,8.694e-05,2]
[421263648,1777290639328,500.0,0.00032876,120]
[421263649,1777290639492,500.0,0.00032876,120]
[421263656,1777290640628,-650.4944148,8.694e-05,2]
[421263657,1777290640681,-1515.4,8.694e-05,2]
[421263661,1777290641876,497.89554429,0.00032876,120]
[421263665,1777290643251,680.61,0.00032876,120]
[421263666,1777290643592,628.23,0.00032876,120]
[421263671,1777290646433,-5768.0,8.694e-05,2]
[421263672,1777290646537,-5122.10611139,8.694e-05,2]
[421263674,1777290650734,500.0,0.00032876,120]
[421263675,1777290653247,2829.58,0.00032876,120]
[421263676,1777290660140,786.68,0.00032876,120]
[421263677,1777290664106,279.21879446,0.00032876,120]
[421263678,1777290668619,500.0,0.00032876,120]
[421263679,1777290670750,385.87,0.00032876,120]
[421263680,1777290671674,597.0681044,0.00032876,120]
[421263681,1777290677880,500.0,0.00032876,120]
[421263682,1777290685663,500.0,0.00032876,120]
[421263683,1777290688347,179.33309064,0.00032876,120]
[421263684,1777290688627,505.74,0.00032876,120]
[421263685,1777290689628,500.0,0.00032876,120]
[421263686,1777290690486,500.0,0.00032876,120]
[421263687,1777290691553,500.0,0.00032876,120]
[421263688,1777290692221,1490.83,0.00032876,120]
[421263689,1777290692605,500.0,0.00032876,120]
[421263690,1777290692907,454.47607327,0.00032876,120]
[421263691,1777290693343,500.0,0.00032876,120]
[421263692,1777290701446,500.0,0.00032876,120]
[421263693,1777290704444,191.55,0.00032876,120]
[421263694,1777290705249,500.0,0.00032876,120]
[421263695,1777290707852,500.0,0.00032876,120]
[421263696,1777290710299,500.0,0.00032876,120]
[421263697,1777290712877,319.91,0.00032876,120]
[421263698,1777290714010,500.0,0.00032876,120]
[421263699,1777290717041,168.66,0.00032876,120]
[421263700,1777290718180,500.0,0.00032876,120]
[421263701,1777290718869,1930.65,0.00032876,120]
[421263702,1777290727472,1000.0,0.00032,120]
[421263703,1777290728581,425.55,0.00032876,120]
[421263704,1777290730116,500.0,0.00032876,120]
[421263705,1777290732458,58.45003629,0.00032876,120]
[421263720,1777291746142,-251.0,7.694e-05,2]
[421263721,1777291746164,-309.35979326,7.694e-05,2]
[421263722,1777291746186,-1661.91427474,8.258e-05,2]
[421263725,1777291832316,-300.0,8.257e-05,2]
[421263726,1777291832326,-1200.0,8.257e-05,2]
[421263727,1777291832335,-3338.08572526,8.258e-05,2]
[421263728,1777291832345,-300.0,8.258e-05,2]
[421263729,1777291832354,-300.0,8.258e-05,2]
[421263730,1777291832363,-191.0,8.258e-05,2]
[421263731,1777291832374,-338.48866119,8.283e-05,2]
[421263732,1777291832384,-201.79,8.424e-05,2]
[421263733,1777291832394,-264.3,8.425e-05,2]
[421263734,1777291832404,-150.0,8.462e-05,2]
[421263735,1777291832413,-528.78,8.463e-05,2]
[421263736,1777291832424,-300.0,8.463e-05,2]
[421263737,1777291832434,-3625.32496697,8.463e-05,2]
[421263738,1777291832446,-1374.67503303,8.463e-05,2]
[421263739,1777291832455,-236.64789133,8.463e-05,2]
[421263740,1777291832464,-193.0,8.463e-05,2]
[421263741,1777291832474,-2077.87707564,8.463e-05,2]
[421263742,1777291832520,-2922.12292436,8.463e-05,2]
[421263743,1777291832529,-300.0,8.463e-05,2]
[421263744,1777291832538,-500.0,8.463e-05,2]
[421263745,1777291832548,-500.0,8.463e-05,2]
[421263746,1777291832557,-503.82549123,8.463e-05,2]
[421263747,1777291832566,-250.0,8.463e-05,2]
[421263748,1777291832575,-500.0,8.463e-05,2]
[421263749,1777291832585,-250.0,8.463e-05,2]
[421263750,1777291832594,-5000.0,8.463e-05,2]
[421263751,1777291832603,-228.68,8.495e-05,2]
[421263752,1777291832612,-354.38385267,8.59e-05,2]
[421263753,1777291832622,-493.436839,8.59e-05,2]
[421263754,1777291832631,-500.0,8.59e-05,2]
[421263755,1777291832640,-500.0,8.59e-05,2]
[421263756,1777291832649,-500.0,8.59e-05,2]
[421263757,1777291832659,-506.96254163,8.59e-05,2]
[421263758,1777291832667,-250.0,8.59e-05,2]
[421263759,1777291832677,-976.924,8.591e-05,2]
[421263760,1777291832686,-2500.0,8.591e-05,2]
[421263761,1777291832696,-154598.75120386,8.591e-05,2]
[421263763,1777291832707,-37349.1863578,8.591e-05,2]
[421263765,1777291832718,-20723.02902304,8.591e-05,2]
[421263766,1777291832728,-1254.41808677,8.591e-05,2]
[421263767,1777291838465,-1286074.61532853,8.591e-05,2]
[421263768,1777291838475,-765.75,8.658e-05,2]
[421263769,1777291838484,-500.0,8.673e-05,2]
[421263770,1777291838493,-500.0,8.673e-05,2]
[421263771,1777291838502,-501.11365073,8.673e-05,2]
[421263772,1777291838511,-500.0,8.673e-05,2]
[421263773,1777291838520,-500.0,8.673e-05,2]
[421263774,1777291838529,-167.23006731,8.673e-05,2]
[421263775,1777291838537,-500.0,8.673e-05,2]
[421263776,1777291838546,-169.96640082,8.673e-05,2]
[421263777,1777291838555,-164.74497727,8.673e-05,2]
[421263778,1777291838564,-165.3691002,8.673e-05,2]
[421263779,1777291838572,-200.34762335,8.673e-05,2]
[421263780,1777291838581,-500.0,8.673e-05,2]
[421263781,1777291838590,-500.0,8.673e-05,2]
[421263782,1777291838599,-500.0,8.673e-05,2]
[421263783,1777291838608,-500.0,8.673e-05,2]
[421263784,1777291838617,-500.0,8.673e-05,2]
[421263785,1777291838626,-500.0,8.673e-05,2]
[421263786,1777291838635,-500.0,8.673e-05,2]
[421263787,1777291838644,-160.71328713,8.673e-05,2]
[421263788,1777291838653,-500.0,8.673e-05,2]
[421263789,1777291838662,-500.0,8.673e-05,2]
[421263790,1777291838670,-234.54653968,8.673e-05,2]
[421263791,1777291838679,-500.0,8.673e-05,2]
[421263792,1777291838688,-500.0,8.673e-05,2]
[421263793,1777291838697,-151.0,8.688e-05,2]
[421263794,1777291838706,-662.19938871,8.69e-05,2]
[421263795,1777291838714,-151.0,8.691e-05,2]
[421263796,1777291838723,-3325.926059,8.691e-05,2]
[421263797,1777291838732,-233596.2232321,8.691e-05,2]
[421263798,1777291838742,-148183.4093979,8.691e-05,2]
[421263799,1777291838751,-3020.7091602,8.691e-05,2]
[421263800,1777291838760,-269.257,8.691e-05,2]
[421263801,1777291838769,-2026.1314692,8.691e-05,2]
[421263802,1777291838778,-13558.3105876,8.691e-05,2]
[421263803,1777291838787,-151.0,8.691e-05,2]
[421263804,1777291838796,-174.915748,8.691e-05,2]
[421263805,1777291838805,-174.915748,8.691e-05,2]
[421263806,1777291838813,-174.915748,8.691e-05,2]
[421263807,1777291838822,-17684.6142323,8.691e-05,2]
[421263808,1777291838831,-174.915748,8.691e-05,2]
[421263810,1777291838839,-322.536416,8.691e-05,2]
[421263812,1777291838848,-322.536416,8.691e-05,2]
[421263814,1777291838857,-322.536416,8.691e-05,2]
[421263816,1777291838866,-322.536416,8.691e-05,2]
[421263817,1777291838874,-3670.934,8.694e-05,2]
[421263819,1777291838884,-500.0,8.694e-05,2]
[421263821,1777291838893,-151.0,8.694e-05,2]
[421263823,1777291838901,-151.0,8.694e-05,2]
[421263825,1777291838910,-151.0,8.694e-05,2]
[421263827,1777291838919,-151.0,8.694e-05,2]
[421263829,1777291838928,-500.0,8.694e-05,2]
[421263831,1777291838937,-500.0,8.694e-05,2]
[421263833,1777291838946,-500.0,8.694e-05,2]
[421263834,1777291838955,-500.0,8.694e-05,2]
[421263836,1777291838964,-500.0,8.694e-05,2]
[421263838,1777291838973,-500.0,8.694e-05,2]
[421263840,1777291838983,-500.0,8.694e-05,2]
[421263842,1777291838992,-500.0,8.694e-05,2]
[421263844,1777291839001,-500.0,8.694e-05,2]
[421263846,1777291839010,-500.0,8.694e-05,2]
[421263848,1777291839019,-500.0,8.694e-05,2]
[421263850,1777291839028,-500.0,8.694e-05,2]
[421263852,1777291839038,-500.0,8.694e-05,2]
[421263854,1777291839047,-500.0,8.694e-05,2]
[421263856,1777291839057,-500.0,8.694e-05,2]
[421263858,1777291839066,-500.0,8.694e-05,2]
[421263860,1777291839075,-500.0,8.694e-05,2]
[421263862,1777291839085,-500.0,8.694e-05,2]
[421263864,1777291839094,-500.0,8.694e-05,2]
[421263865,1777291839103,-500.0,8.694e-05,2]
[421263867,1777291839112,-500.0,8.694e-05,2]
[421263869,1777291839121,-500.0,8.694e-05,2]
[421263871,1777291839130,-500.0,8.694e-05,2]
[421263873,1777291839139,-500.0,8.694e-05,2]
[421263875,1777291839149,-500.0,8.694e-05,2]
[421263877,1777291839158,-500.0,8.694e-05,2]
[421263879,1777291839168,-500.0,8.694e-05,2]
[421263881,1777291839177,-500.0,8.694e-05,2]
[421263883,1777291839186,-500.0,8.694e-05,2]
[421263885,1777291839195,-500.0,8.694e-05,2]
[421263886,1777291839204,-500.0,8.694e-05,2]
[421263888,1777291839213,-500.0,8.694e-05,2]
[421263890,1777291839224,-500.0,8.694e-05,2]
[421263892,1777291839233,-500.0,8.694e-05,2]
[421263894,1777291839242,-500.0,8.694e-05,2]
[421263896,1777291839251,-500.0,8.694e-05,2]
[421263898,1777291839261,-500.0,8.694e-05,2]
[421263899,1777291839270,-500.0,8.694e-05,2]
[421263901,1777291839279,-500.0,8.694e-05,2]
[421263903,1777291839288,-500.0,8.694e-05,2]
[421263905,1777291839297,-500.0,8.694e-05,2]
[421263906,1777291839306,-500.0,8.694e-05,2]
[421263907,1777291839315,-500.0,8.694e-05,2]
[421263908,1777291839325,-500.0,8.694e-05,2]
[421263909,1777291839334,-500.0,8.694e-05,2]
[421263910,1777291839343,-500.0,8.694e-05,2]
[421263911,1777291839352,-500.0,8.694e-05,2]
[421263912,1777291839361,-500.0,8.694e-05,2]
[421263913,1777291839371,-500.0,8.694e-05,2]
[421263914,1777291839380,-500.0,8.694e-05,2]
[421263915,1777291839389,-500.0,8.694e-05,2]
[421263916,1777291839398,-500.0,8.694e-05,2]
[421263917,1777291839407,-500.0,8.694e-05,2]
[421263918,1777291839416,-500.0,8.694e-05,2]
[421263919,1777291839425,-500.0,8.694e-05,2]
[421263920,1777291839434,-500.0,8.694e-05,2]
[421263921,1777291839444,-500.0,8.694e-05,2]
[421263922,1777291839454,-500.0,8.694e-05,2]
[421263923,1777291839463,-500.0,8.694e-05,2]
[421263924,1777291839472,-500.0,8.694e-05,2]
[421263925,1777291839482,-500.0,8.694e-05,2]
[421263926,1777291839491,-500.0,8.694e-05,2]
[421263927,1777291839500,-500.0,8.694e-05,2]
[421263928,1777291839510,-500.0,8.694e-05,2]
[421263929,1777291839519,-500.0,8.694e-05,2]
[421263930,1777291839529,-500.0,8.694e-05,2]
[421263931,1777291839538,-500.0,8.694e-05,2]
[421263932,1777291839547,-500.0,8.694e-05,2]
[421263933,1777291839556,-500.0,8.694e-05,2]
[421263934,1777291839565,-500.0,8.694e-05,2]
[421263935,1777291839575,-500.0,8.694e-05,2]
[421263936,1777291839583,-500.0,8.694e-05,2]
[421263937,1777291839593,-500.0,8.694e-05,2]
[421263938,1777291839602,-500.0,8.694e-05,2]
[421263939,1777291839611,-500.0,8.694e-05,2]
[421263940,1777291839620,-500.0,8.694e-05,2]
[421263941,1777291839629,-500.0,8.694e-05,2]
[421263942,1777291839638,-500.0,8.694e-05,2]
[421263943,1777291839648,-500.0,8.694e-05,2]
[421263944,1777291839658,-500.0,8.694e-05,2]
[421263945,1777291839667,-500.0,8.694e-05,2]
[421263946,1777291839676,-500.0,8.694e-05,2]
[421263947,1777291839684,-500.0,8.694e-05,2]
[421263948,1777291839693,-500.0,8.694e-05,2]
[421263949,1777291839703,-500.0,8.694e-05,2]
[421263950,1777291839712,-500.0,8.694e-05,2]
[421263951,1777291839721,-500.0,8.694e-05,2]
[421263952,1777291839730,-420.087707,8.694e-05,2]
[421263953,1777291839739,-151.0,8.694e-05,2]
[421263954,1777291839749,-151.0,8.694e-05,2]
[421263955,1777291839758,-174.915748,8.694e-05,2]
[421263956,1777291839767,-174.915748,8.694e-05,2]
[421263957,1777291839776,-174.915748,8.694e-05,2]
[421263958,1777291839785,-174.915748,8.694e-05,2]
[421263959,1777291839794,-174.915748,8.694e-05,2]
[421263960,1777291839804,-174.915748,8.694e-05,2]
[421263961,1777291839813,-174.915748,8.694e-05,2]
[421263962,1777291839822,-174.915748,8.694e-05,2]
[421263963,1777291839832,-322.536416,8.694e-05,2]
[421263964,1777291839841,-322.536416,8.694e-05,2]
[421263965,1777291839850,-322.536416,8.694e-05,2]
[421263966,1777291839868,-322.536416,8.694e-05,2]
[421263967,1777291839879,-151.0,8.767e-05,2]
[421263968,1777291839889,-151.584864,8.767e-05,2]
[421263969,1777291839898,-1078.42509831,8.792e-05,3]
[421263970,1777291839908,-1000.0,8.793e-05,2]
[421263971,1777291839917,-1000.0,8.793e-05,2]
[421263972,1777291839928,-1000.0,8.793e-05,2]
[421263973,1777291839938,-1000.0,8.793e-05,2]
[421263974,1777291839948,-1000.0,8.793e-05,2]
[421263975,1777291839957,-1000.0,8.793e-05,2]
[421263976,1777291839967,-1000.0,8.793e-05,2]
[421263977,1777291839977,-1000.0,8.793e-05,2]
[421263978,1777291839986,-1000.0,8.793e-05,2]
[421263979,1777291839996,-1000.0,8.793e-05,2]
[421263980,1777291840006,-1000.0,8.793e-05,2]
[421263981,1777291840016,-1000.0,8.793e-05,2]
[421263982,1777291840026,-1000.0,8.793e-05,2]
[421263983,1777291840036,-1000.0,8.793e-05,2]
[421263984,1777291840045,-1000.0,8.793e-05,2]
[421263985,1777291840055,-1000.0,8.793e-05,2]
[421263986,1777291840064,-1000.0,8.793e-05,2]
[421263987,1777291840074,-1000.0,8.793e-05,2]
[421263988,1777291840083,-1000.0,8.793e-05,2]
[421263989,1777291840092,-1000.0,8.793e-05,2]
[421263990,1777291840102,-1000.0,8.793e-05,2]
[421263991,1777291840111,-1000.0,8.793e-05,2]
[421263992,1777291840120,-1000.0,8.793e-05,2]
[421263993,1777291840130,-1000.0,8.793e-05,2]
[421263994,1777291840140,-1000.0,8.793e-05,2]
[421263995,1777291840150,-1000.0,8.793e-05,2]
[421263996,1777291840160,-1000.0,8.793e-05,2]
[421263997,1777291840169,-1000.0,8.793e-05,2]
[421263998,1777291840179,-1000.0,8.793e-05,2]
[421263999,1777291840189,-1006.93960088,8.793e-05,2]
[421264001,1777291840199,-322.536416,8.793e-05,2]
[421264003,1777291840208,-322.536416,8.793e-05,2]
[421264005,1777291840218,-322.536416,8.793e-05,2]
[421264007,1777291840228,-322.536416,8.793e-05,2]
[421264008,1777291840238,-390.1356569,8.806e-05,2]
[421264009,1777291840247,-5018.71878087,9e-05,2]
[421264010,1777291840261,-5000.0,9e-05,2]
[421264011,1777291840271,-5000.0,9e-05,2]
[421264012,1777291840281,-5000.0,9e-05,2]
[421264013,1777291840292,-5000.0,9e-05,2]
[421264014,1777291840302,-151.0,9e-05,2]
[421264015,1777291840312,-200.0,9e-05,3]
[421264016,1777291840322,-151.0,9e-05,2]
[421264017,1777291840331,-174.915748,9e-05,2]
[421264018,1777291840341,-174.915748,9e-05,2]
[421264019,1777291840352,-174.915748,9e-05,2]
[421264020,1777291840362,-174.915748,9e-05,2]
[421264021,1777291840372,-319.8493573,9.083e-05,2]
[421264022,1777291840382,-5000.0,9.083e-05,2]
[421264023,1777291840392,-420.0,9.083e-05,2]
[421264024,1777291840402,-1680.0,9.083e-05,2]
[421264025,1777291840412,-12549.31152615,9.143e-05,2]
[421264026,1777291840422,-1000.0,9.221e-05,2]
[421264027,1777291840432,-1000.0,9.221e-05,2]
[421264028,1777291840442,-1000.93491423,9.221e-05,2]
[421264029,1777291840452,-1000.0,9.221e-05,2]
[421264030,1777291840462,-171.74751635,9.221e-05,2]
[421264031,1777291840472,-1000.0,9.221e-05,2]
[421264032,1777291840481,-1000.0,9.221e-05,2]
[421264033,1777291840491,-1000.0,9.221e-05,2]
[421264034,1777291840504,-540.27550686,9.221e-05,2]
[421264036,1777291840514,-306.17924556,9.221e-05,2]
[421264038,1777291840524,-572.09413596,9.221e-05,2]
[421264040,1777291840533,-463.14071928,9.221e-05,2]
[421264042,1777291840544,-1000.0,9.221e-05,2]
[421264044,1777291840554,-318.57284754,9.221e-05,2]
[421264045,1777291840563,-1000.0,9.221e-05,2]
[421264046,1777291840573,-322.536416,9.221e-05,2]
[421264047,1777291840582,-322.536416,9.221e-05,2]
[421264048,1777291840592,-322.536416,9.221e-05,2]
[421264049,1777291840602,-322.536416,9.221e-05,2]
[421264050,1777291840611,-255.0,9.309e-05,2]
[421264051,1777291840621,-3325.926059,9.599e-05,2]
[421264052,1777291840630,-150.0,9.616e-05,2]
[421264053,1777291840639,-150.0,9.616e-05,2]
[421264054,1777291840649,-150.0,9.616e-05,2]
[421264055,1777291840659,-150.0,9.616e-05,2]
[421264056,1777291840668,-150.0,9.616e-05,2]
[421264057,1777291840677,-150.0,9.616e-05,2]
[421264058,1777291840687,-150.0,9.667e-05,2]
[421264059,1777291840696,-150.0,9.718e-05,2]
[421264060,1777291840706,-176.26,9.733e-05,2]
[421264061,1777291840718,-502.17428254,9.768e-05,2]
[421264062,1777291840727,-1500.0,9.768e-05,2]
[421264063,1777291840736,-1540.17297121,9.768e-05,2]
[421264064,1777291840746,-979.09770031,9.768e-05,2]
[421264065,1777291840756,-639.03168407,9.768e-05,2]
[421264066,1777291840766,-1500.0,9.768e-05,2]
[421264067,1777291840775,-1500.0,9.768e-05,2]
[421264068,1777291840785,-1500.0,9.768e-05,2]
[421264069,1777291840795,-150.0,9.769e-05,2]
[421264070,1777291840804,-150.0,9.82e-05,2]
[421264071,1777291840814,-3945.9708058,9.825e-05,2]
[421264072,1777291840823,-150.0,9.871e-05,2]
[421264073,1777291840833,-150.0,9.922e-05,2]
[421264074,1777291840843,-154.642236,9.943e-05,2]
[421264075,1777291840853,-150.0,9.973e-05,2]
[421264076,1777291840862,-150.0,9.973e-05,2]
[421264077,1777291840872,-402.0,9.991e-05,2]
[421264078,1777291840881,-2351.0,9.991e-05,2]
[421264079,1777291840891,-1047.49758413,0.0001,2]
[421264080,1777291840900,-2593.94442435,0.0001,2]
[421264081,1777291840910,-784.62712457,0.0001,2]
[421264082,1777291840920,-860.68953084,0.0001,2]
[421264083,1777291840930,-2142.21045712,0.0001,2]
[421264084,1777291840939,-791.81731628,0.0001,2]
[421264085,1777291840954,-780.0825043,0.0001,2]
[421264086,1777291840964,-833.36180372,0.0001,2]
[421264087,1777291840974,-786.35628597,0.0001,2]
[421264088,1777291840983,-258.93161437,0.0001,2]
[421264089,1777291840993,-258.93161437,0.0001,2]
[421264090,1777291841003,-151.0,0.0001,2]
[421264091,1777291841013,-151.0,0.0001,2]
[421264092,1777291841022,-151.0,0.0001,2]
[421264093,1777291841031,-151.0,0.0001,2]
[421264094,1777291841041,-151.0,0.0001,2]
[421264095,1777291841050,-151.0,0.0001,2]
[421264096,1777291841060,-151.0,0.0001,2]
[421264097,1777291841070,-151.0,0.0001,2]
[421264098,1777291841080,-151.0,0.0001,2]
[421264099,1777291841090,-165.49301793,0.0001,2]
[421264100,1777291841100,-151.0,0.0001,2]
[421264101,1777291841109,-151.0,0.0001,2]
[421264102,1777291841119,-151.0,0.0001,2]
[421264103,1777291841128,-400.0,0.0001,3]
[421264104,1777291841138,-966.68645,0.0001,2]
[421264105,1777291841147,-237.94910738,0.00010022,2]
[421264106,1777291841157,-150.0,0.00010023,2]
[421264107,1777291841167,-150.0,0.00010074,2]
[421264108,1777291841177,-880.4650978,0.00010078,2]
[421264109,1777291841186,-150.0,0.00010125,2]
[421264111,1777291841197,-150.0,0.00010151,2]
[421264112,1777291841207,-150.0,0.00010151,2]
[421264114,1777291841217,-241.468319,0.00010176,2]
[421264115,1777291841226,-174.915748,0.00010176,2]
[421264117,1777291841236,-174.915748,0.00010176,2]
[421264118,1777291841246,-174.915748,0.00010176,2]
[421264120,1777291841259,-174.915748,0.00010176,2]
[421264121,1777291841268,-150.0,0.00010176,2]
[421264122,1777291841278,-150.0,0.00010227,2]